[Event "CIS Master Groups 2024"]
[Site "Vasto"]
[Date "2024.04.11"]
[Round "5.20"]
[White "D'Amore, Carlo"]
[Black "Di Benedetto, Edoardo"]
[Result "0-1"]
[ECO "A14"]
[WhiteElo "2376"]
[BlackElo "2400"]
[Annotator "TA"]
[PlyCount "170"]
[EventDate "2024.04.07"]
[EventType "team-tourn"]
[EventCountry "ITA"]
[SourceTitle "playchess.com"]
[Source "ChessBase"]
[SourceQuality "1"]
[TimeControl "40/5400+30:900+30"]

{[%evp 21,170,0,11,-3,18,-17,-8,-21,-18,-9,-18,-30,-34,-39,-12,-8,0,-8,0,-8,0,-17,0,0,0,-50,-35,-24,-35,-32,-43,-51,-61,-47,0,0,0,0,0,0,0,-16,-10,-6,0,-8,-7,-12,-8,-20,-12,-11,-11,-106,0,-183,-191,-191,-178,-178,-59,-58,-58,-73,-73,-73,-73,-73,-66,-66,-66,-66,-66,-66,-66,-66,-66,-66,-59,-66,-66,-66,-66,-67,-66,-66,-66,-70,-70,-75,-81,-124,-45,-59,-59,-59,-59,-1523,-1177,-12850,-12840,-12848,-12818,-12847,-12847,-12792,-12742,-12805,-5401,-12750,-3864,-29973,-29974,-29972,-29965,-29965,-29965,-29960,-29965,-29963,-29961,-29956,-29964,-29967,-29970,-29976,-29975,-29975,-29976,-29976,-29977,-29981,-29979,-29977,-29978,-29980,-29981,-29981,-29981,-29982,-29983,-29984,-29985,-29985,-29986,-29986,-29987,-29987,-29988,-29988,-29987]} 1. Nf3 {[%emt 0:00:11]} d5 {[%emt 0:00:12]} 2. c4 {[%emt 0:00:34]} e6 {[%emt 0:00:15]} 3. e3 {[%emt 0:00:39]} Nf6 {[%emt 0:00:43]} 4. b3 {[%emt 0:00:14]} Be7 {[%emt 0:00:20]} 5. Bb2 {[%emt 0:00:30]} O-O {[%emt 0:00:08]} 6. Nc3 {[%emt 0:03:31]} b6 {[%emt 0:13:23]} 7. g3 {[%emt 0:04:43]} Bb7 {[%emt 0:01:11]} 8. Bg2 {[%emt 0:00:20]} dxc4 {[%emt 0:02:50]} 9. bxc4 {[%emt 0:00:25]} c5 {[%emt 0:00:16]} 10. O-O {[%emt 0:02:43]} Nc6 {[%emt 0:03:31]} 11. Qe2 {[%emt 0:03:43]} Rc8 {[%emt 0:02:02]} 12. Rac1 {[%emt 0:12:18]} Nb4 {[%emt 0:07:13]} 13. Ne1 {[%emt 0:04:30] Against Qd3} Bxg2 {[%emt 0:00:49]} 14. Kxg2 {[%emt 0:00:06] The position is equal.} Qd7 {[%emt 0:00:26]} 15. a3 {[%emt 0:00:16]} Nc6 {[%emt 0:00:14]} 16. Nf3 {[%emt 0:01:05]} Rfd8 {[%emt 0:10:25]} 17. Rfd1 {[%emt 0:01:12]} Qb7 {[%emt 0:00:54]} 18. Kg1 {[%emt 0:00:37]} Rd7 {[%emt 0:07:04]} 19. d3 {[%emt 0:04:49]} Rcd8 {[%emt 0:03:14]} 20. Ne1 {[%emt 0:01:21]} Ne8 {[%emt 0:02:40]} 21. f4 {[%emt 0:02:15]} a6 {[%emt 0:01:34]} 22. Nf3 {[%emt 0:04:38]} b5 {[%emt 0:02:11]} 23. cxb5 {[%emt 0:01:24]} (23. Ne4 $11) 23... axb5 $15 {[%emt 0:00:06]} 24. Ne4 {[%emt 0:01:06] [#]} c4 {[%emt 0:01:09]} 25. dxc4 {[%emt 0:03:26] Black must now prevent Rxd7.} Rxd1+ {[%emt 0:00:06]} 26. Rxd1 {[%emt 0:00:03]} Rxd1+ {[%emt 0:00:18]} 27. Qxd1 {[%emt 0:00:04]} bxc4 {[%emt 0:00:11]} (27... Na5 $15 {should be considered.} 28. Ned2 Nxc4 (28... bxc4 29. Bc3 $14) 29. Nxc4 bxc4) 28. Qc2 $11 {[%emt 0:00:16]} Na5 {[%emt 0:05:22]} 29. Neg5 {[%emt 0:07:38]} g6 {[%emt 0:03:14]} 30. Bc3 {[%emt 0:16:30]} Nc6 {[%emt 0:08:50][%cal Ob7a7]} 31. a4 {[%emt 0:24:53]} Nd6 {[%emt 0:12:22]} 32. Ne4 {[%emt 0:00:00]} Qb6 {[%emt 0:02:12]} 33. Nxd6 {[%emt 0:00:00]} Qxe3+ {[%emt 0:01:02]} 34. Kg2 {[%emt 0:00:00]} Bxd6 {[%emt 0:00:10]} 35. Qd2 {[%emt 0:00:00]} Qc5 {[%emt 0:03:21]} 36. a5 {[%emt 0:00:00]} Qd5 {[%emt 0:02:45]} 37. Qa2 {[%emt 0:00:00]} (37. a6 $11 {keeps the balance.}) 37... e5 {[%emt 0:01:43] Black is more active.} ({Better is} 37... g5 $17 {Hoping for ...g4.} 38. Qd2 (38. fxg5 Be5 $17) 38... gxf4) 38. fxe5 $2 {[%emt 0:00:00]} (38. Qd2 $11 Nd4 39. Bxd4) 38... Bxe5 $19 {[%emt 0:00:23]} (38... Nxe5 39. Qe2 Nxf3 40. Qxf3 $14) 39. Qd2 {[%emt 0:01:29]} Qxd2+ {[%emt 0:01:30]} 40. Bxd2 {[%emt 0:00:11][%mdl 4096] Endgame. KBN-KBN} Bc7 {[%emt 0:03:07]} (40... Bb2 $1 $19 {aiming for ...c3.} 41. Ne1 (41. a6 $2 c3 $19) 41... c3) 41. a6 $15 {[%emt 0:15:25]} Bb6 {[%emt 0:15:21] Inhibits Nd4.} 42. Kf1 {[%emt 0:00:33]} Nb8 {[%emt 0:00:38]} 43. Ne5 {[%emt 0:02:18]} Nxa6 {[%emt 0:00:08]} 44. Nxc4 {[%emt 0:00:07]} Bd4 {[%emt 0:00:28]} 45. Kg2 {[%emt 0:00:44]} f6 {[%emt 0:00:30]} 46. Kf3 {[%emt 0:00:00]} Kf7 {[%emt 0:00:00]} 47. Be3 {[%emt 0:00:00]} Bxe3 {[%emt 0:00:00]} 48. Nxe3 {[%emt 0:00:00] KN-KN} Ke6 {[%emt 0:00:00]} 49. h4 {[%emt 0:00:00]} Nc5 {[%emt 0:00:00]} 50. g4 {[%emt 0:00:00]} Ke5 {[%emt 0:00:00]} 51. Nc4+ {[%emt 0:00:00]} Kd4 {[%emt 0:00:00]} 52. Nd6 {[%emt 0:00:00]} Kd5 {[%emt 0:00:00]} 53. Nb5 {[%emt 0:00:00]} Ne6 {[%emt 0:00:00] Strongly threatening ...Nd4+.} 54. Nc3+ {[%emt 0:00:00]} Ke5 {[%emt 0:00:00]} 55. Nd1 {[%emt 0:00:00]} Nd4+ {[%emt 0:00:00]} 56. Kg3 {[%emt 0:00:00]} h5 {[%emt 0:00:00]} (56... f5 $17 {...h5 is the strong threat.} 57. gxf5 gxf5 (57... Nxf5+ 58. Kg4 $11)) 57. Nf2 {[%emt 0:00:00]} Ne6 {[%emt 0:00:00]} 58. Kf3 $1 {[%emt 0:00:00]} Nc5 {[%emt 0:00:00] Prevents Nd3+.} 59. Ke3 $2 {[%emt 0:00:00][%mdl 8192] White does not recover from this.} ({Much worse is} 59. gxh5 gxh5 60. Nd1 Ne6 $17) (59. Nd1 $15) 59... f5 $1 $19 {[%emt 0:00:00]} 60. gxh5 {[%emt 0:00:00]} gxh5 {[%emt 0:00:00]} 61. Kf3 {[%emt 0:00:00] [#]} f4 $1 {[%emt 0:00:00]} 62. Nh3 {[%emt 0:00:03]} Ne6 {[%emt 0:00:00] ( -> ...Nd4+)} 63. Ng5 {[%emt 0:02:21]} Nd4+ {[%emt 0:00:00]} 64. Kg2 {[%emt 0:01:46]} Kf5 {[%emt 0:00:00]} (64... Nc6 $142 65. Nh7 Nd4) 65. Kh3 {[%emt 0:00:16]} Ne6 {[%emt 0:00:00]} (65... Nc6 $142 66. Nh7 Nd4) 66. Nf3 {[%emt 0:01:48]} Ke4 {[%emt 0:00:00] Black mates.} 67. Kg2 {[%emt 0:01:25]} Ke3 {[%emt 0:00:00]} 68. Ne5 {[%emt 0:00:44]} Nd4 {[%emt 0:00:00]} 69. Kf1 {[%emt 0:01:33]} Nf5 {[%emt 0:00:39]} 70. Nc4+ {[%emt 0:00:23]} Kf3 {[%emt 0:00:12]} 71. Nd2+ {[%emt 0:00:31]} Kg4 {[%emt 0:00:13]} 72. Kf2 {[%emt 0:00:07]} Nxh4 {[%emt 0:00:12]} 73. Nc4 {[%emt 0:00:11]} Ng6 {[%emt 0:00:10]} 74. Kg2 {[%emt 0:00:39]} h4 {[%emt 0:00:05]} 75. Kf2 {[%emt 0:00:47]} h3 {[%emt 0:00:07]} 76. Nd2 {[%emt 0:00:07]} Kf5 {[%emt 0:01:21]} 77. Kg1 {[%emt 0:00:14] [#]} Ne5 $1 {[%emt 0:00:24]} 78. Kh2 {[%emt 0:00:13]} Kg4 {[%emt 0:00:04]} 79. Ne4 {[%emt 0:00:05]} Nf3+ {[%emt 0:00:22]} 80. Kh1 {[%emt 0:00:07]} Ng5 {[%emt 0:00:10]} 81. Nd2 {[%emt 0:02:12]} Kg3 {[%emt 0:00:17]} 82. Nf1+ {[%emt 0:00:35]} Kf2 {[%emt 0:00:06]} 83. Nh2 {[%emt 0:00:13]} Ke2 {[%emt 0:00:59]} 84. Ng4 {[%emt 0:00:11]} f3 {[%emt 0:00:14]} 85. Kg1 {[%emt 0:00:06]} Ke1 {[%emt 0:00:27] Weighted Error Value: White=0.34/Black=0.10 (very precise) .  Loses game:     	White=2     	---        Mistake:       	White=2     	Black=4      Inaccurate:     	White=3     	Black=1      OK:         	White=18    	Black=23     Best:        	White=4     	Black=1      Strong:       	White=1     	Black=1} 0-1

[Event "CIS Master Groups 2024"]
[Site "Vasto"]
[Date "2024.04.11"]
[Round "5.22"]
[White "Sonis, Francesco"]
[Black "Iermito, Sebastian"]
[Result "1-0"]
[ECO "A13"]
[WhiteElo "2562"]
[BlackElo "2511"]
[Annotator "TA"]
[PlyCount "61"]
[EventDate "2024.04.07"]
[EventType "team-tourn"]
[EventCountry "ITA"]
[SourceTitle "playchess.com"]
[Source "ChessBase"]
[SourceQuality "1"]
[TimeControl "40/5400+30:900+30"]

{[%evp 9,61,21,18,-10,-11,-43,-50,-35,-45,-45,-26,-50,-37,-55,-46,-43,-44,-50,-54,-43,-43,-40,-33,-38,-3,-12,0,0,42,0,47,44,58,48,55,27,19,47,26,25,23,33,106,113,113,0,112,0,0,0,65,7,1227,1245]} 1. c4 {[%emt 0:00:08]} e6 {[%emt 0:00:27]} 2. Nc3 {[%emt 0:00:07]} Bb4 {[%emt 0:02:05]} 3. Nf3 {[%emt 0:03:22]} Ne7 {[%emt 0:15:28]} 4. Qb3 {[%emt 0:01:00]} c5 {[%emt 0:01:51]} 5. a3 {[%emt 0:01:02]} Ba5 {[%emt 0:00:23]} 6. Qb5 {[%emt 0:05:00]} Bxc3 {[%emt 0:03:03]} 7. bxc3 {[%emt 0:00:29]} b6 {[%emt 0:00:37]} 8. g3 {[%emt 0:00:19] Black is slightly better.} Bb7 {[%emt 0:05:20]} 9. Bg2 {[%emt 0:00:05]} O-O {[%emt 0:00:25]} 10. O-O {[%emt 0:00:11]} Nbc6 {[%emt 0:00:54]} 11. Qb1 {[%emt 0:08:56]} h6 {[%emt 0:06:35]} 12. d3 {[%emt 0:04:29]} d6 {[%emt 0:00:29]} 13. e4 {[%emt 0:04:36]} Qd7 {[%emt 0:13:18]} 14. Qc2 {[%emt 0:00:41]} f5 {[%emt 0:06:05]} 15. exf5 {[%emt 0:00:05]} Nxf5 {[%emt 0:01:07]} 16. Qe2 {[%emt 0:00:05]} e5 {[%emt 0:01:06]} 17. Nd2 {[%emt 0:04:56]} Rae8 {[%emt 0:01:37]} 18. Ne4 {[%emt 0:00:11]} Kh8 {[%emt 0:02:01]} 19. f4 {[%emt 1:04:18]} (19. Qh5 $5 Na5 20. g4 $14) 19... exf4 {[%emt 0:16:56]} (19... d5 $11 20. cxd5 Qxd5) 20. Bxf4 $14 {[%emt 0:00:00]} d5 {[%emt 0:00:15]} 21. cxd5 {[%emt 0:00:00]} Qxd5 {[%emt 0:00:03]} 22. Qh5 {[%emt 0:00:00][%cal Oe4d6] [#] Threatens to win with Nd6!} (22. Rf2 {simplifies} Qd8 23. Raf1 Nce7 24. Bc1) 22... Ne5 {[%emt 0:08:04]} (22... Qxd3 $2 23. Rad1 Qc2 24. Rd2 $18) 23. g4 {[%emt 0:00:00]} (23. Rf2 {is more complex.} Nxd3 24. Nf6 Qe6 25. Nxe8 Nxf2 26. Nc7) 23... Nxd3 {[%emt 0:10:02]} (23... Qxd3 $2 24. gxf5 Bxe4 25. Rad1 $18 (25. f6 Kh7 $11) (25. f6 Kh7 $11)) 24. gxf5 {[%emt 0:00:00][%cal Of4h6]} Rxe4 {[%emt 0:00:45]} 25. Bxh6 {[%emt 0:00:00][%cal Of1f3] Black must now prevent Rf3!} gxh6 {[%emt 0:00:08]} (25... Rf7 $1 $14 26. Rf3 (26. Bxe4 Qxe4 27. Bxg7+ Kxg7 $17) 26... gxh6 27. Qxh6+ Rh7 28. Qf6+ (28. Qf8+ Qg8 $16) 28... Rg7 29. Qf8+ (29. Rg3 Qf7 $16) 29... Qg8 30. Rh3+ (30. Qxg8+ $2 Kxg8 31. Rg3 Ree7 $19) 30... Rh7 31. Qxg8+ (31. Rxd3 $2 Qxf8 32. Rad1 Rg4 $19) 31... Kxg8 32. Rxd3 Ree7 33. Bxb7 Rxb7) 26. Qxh6+ $16 {[%emt 0:00:00]} Kg8 {[%emt 0:00:03][%cal Oe4g4]} 27. Qg6+ {[%emt 0:00:00][%mdl 1024] White has strong compensation.} Kh8 {[%emt 0:00:03][%cal Of8f7] [#]} 28. Qh6+ {[%emt 0:00:00] Chess con chili.} (28. f6 $6 Qd7 29. Qh6+ (29. Bxe4 $2 Rg8 $19) 29... Kg8 $11) (28. Rad1 $1 $16 Qd7 29. Rf3 (29. Bxe4 Bxe4 $11) 29... Re1+ 30. Rxe1 Bxf3 31. Qh6+ Kg8 32. Re3) 28... Kg8 $11 {[%emt 0:00:03][%cal Oe4g4] ( -> ...Rg4!)} 29. Qg6+ {[%emt 0:00:00]} (29. Bxe4 $11 Qxe4 30. Rf3 (30. Qg6+ Kh8 $11) 30... Qxf3 31. Qg6+ Kh8 32. Qh6+ Kg8 33. Qg6+ Kh8 34. Qh6+ Kg8) 29... Kh8 $14 {[%emt 0:00:03][%cal Of8f7]} 30. f6 {[%emt 0:00:00]} ({White should try} 30. Rad1 $1 $14 Qd7 31. Rf3 (31. Bxe4 Bxe4 32. Rxd3 Bxd3 $11) 31... Re1+ 32. Rxe1 Bxf3 33. Qh6+ Kg8 34. Re3) 30... Rf7 $2 {[%emt 0:02:06][%mdl 8192]} 31. Rf5 {[%emt 0:00:00] Weighted Error Value: White=0.16 (very precise) /Black=0.15 (very precise) .  Loses game:     	---       	Black=1      Mistake:       	White=3     	Black=2      Inaccurate:     	White=3     	Black=4      OK:         	White=12    	Black=8      Best:        	---       	Black=1} ({Weaker is} 31. Qxe4 Qxe4 32. Bxe4 Bxe4 $17) 1-0

[Event "CIS Master Groups 2024"]
[Site "Vasto"]
[Date "2024.04.11"]
[Round "5.23"]
[White "Godena, Michele"]
[Black "Paltrinieri, Nicholas"]
[Result "1-0"]
[ECO "C03"]
[WhiteElo "2429"]
[BlackElo "2355"]
[Annotator "TA"]
[PlyCount "67"]
[EventDate "2024.04.07"]
[EventType "team-tourn"]
[EventCountry "ITA"]
[SourceTitle "playchess.com"]
[Source "ChessBase"]
[SourceQuality "1"]
[TimeControl "40/5400+30:900+30"]

{[%evp 9,67,7,14,6,10,5,13,14,8,14,14,12,30,29,41,28,36,31,110,85,130,99,348,343,330,341,346,338,609,368,600,604,571,608,580,514,507,489,759,749,746,735,802,777,1068,1064,1056,1058,1140,1132,1091,1125,1104,1091,1041,910,1195,1164,5577,5112]} 1. e4 {[%emt 0:00:04][%cal Be2e4,Be4e5][%mdl 32]} e6 {[%emt 0:00:03]} 2. d4 {[%emt 0:00:09]} d5 {[%emt 0:00:05]} 3. Nd2 {[%emt 0:00:12]} Be7 {[%emt 0:00:05]} 4. c3 {[%emt 0:02:39]} c5 {[%emt 0:00:07]} 5. Ngf3 {[%emt 0:00:47]} Nf6 {[%emt 0:00:08]} 6. e5 {[%emt 0:02:42]} Nfd7 {[%emt 0:00:06]} 7. Bd3 {[%emt 0:00:12]} b6 {[%emt 0:00:05]} 8. O-O {[%emt 0:02:33] The position is equal.} Ba6 {[%emt 0:00:07]} 9. Bxa6 {[%emt 0:00:33]} Nxa6 {[%emt 0:00:05]} 10. Ne1 {[%emt 0:00:31][%cal Bf3e1,Be1d3,Bd3f4,Bf4e6][%mdl 32]} Nab8 {[%emt 0:00:54]} 11. Qg4 {[%emt 0:11:05]} g6 {[%emt 0:04:24]} 12. Ndf3 {[%emt 0:10:19]} Nc6 {[%emt 0:01:25]} 13. Bh6 {[%emt 0:03:00]} b5 {[%emt 0:06:07]} (13... Rc8 $14) 14. Nd3 {[%emt 0:05:07] White is more active.} c4 {[%emt 0:11:30]} 15. Nf4 {[%emt 0:00:29][%cal Of4e6]} Bf8 $2 {[%emt 0:00:28] [#] Black cannot hold the game after this.} (15... Qb6 $16 {was necessary.}) 16. Nxe6 $1 $18 {[%emt 0:12:33][%mdl 512]} fxe6 {[%emt 0:00:05]} 17. Qxe6+ {[%emt 0:00:05]} Ne7 {[%emt 0:00:43]} 18. Ng5 {[%emt 0:00:33][%csl Gg5][%cal Re6f7]} Qb6 $2 {[%emt 0:01:07]} (18... Nc5 19. Qf6 (19. dxc5 Bxh6 20. Qf7+ Kd7 $18) 19... Bxh6 20. Qxh8+ Kd7 21. Qxd8+ (21. Qxh7 Bxg5 22. dxc5 Qg8 $14) 21... Rxd8) 19. Qf7+ {[%emt 0:03:33]} Kd8 {[%emt 0:00:04]} 20. Ne6+ {[%emt 0:00:57] White is clearly winning.} Qxe6 {[%emt 0:00:04]} 21. Qxe6 {[%emt 0:00:05]} Bxh6 {[%emt 0:00:05]} 22. Qh3 {[%emt 0:25:36]} Bg7 {[%emt 0:01:04]} 23. a4 {[%emt 0:00:04]} a5 {[%emt 0:08:28]} (23... b4 $142 24. b3 (24. cxb4 Rf8 $18) 24... Rc8) 24. axb5 {[%emt 0:01:15]} Nb6 {[%emt 0:00:05]} 25. f4 {[%emt 0:06:33]} Ra7 {[%emt 0:00:05][%cal Ba8a7,Ba7b7,Bb7b6][%mdl 32]} 26. Kh1 {[%emt 0:00:25]} h5 {[%emt 0:01:18]} 27. Qe6 {[%emt 0:00:42]} Nbc8 {[%emt 0:02:49]} 28. b6 {[%emt 0:00:09]} Rb7 {[%emt 0:02:28]} 29. Rxa5 {[%emt 0:00:09]} Rxb6 {[%emt 0:01:35]} 30. Rxd5+ {[%emt 0:01:34]} Nxd5 {[%emt 0:00:04]} 31. Qxd5+ {[%emt 0:00:05]} Ke7 {[%emt 0:01:05]} 32. Qc5+ {[%emt 0:00:58]} Kd7 {[%emt 0:01:36]} 33. d5 {[%emt 0:04:30][%cal Bd4d5,Bd5d6][%mdl 32] [#] Strongly threatening d6.} h4 {[%emt 0:01:51]} 34. d6 {[%emt 0:01:11] Weighted Error Value: White=0.10 (very precise) /Black=0.75.  Loses game:     	---       	Black=1      Mistake:       	---       	Black=3      Inaccurate:     	---       	Black=2      OK:         	White=10    	Black=5      Best:        	White=2     	Black=2      Brilliant:      	White=1     	---} 1-0

[Event "CIS Master Groups 2024"]
[Site "Vasto"]
[Date "2024.04.11"]
[Round "5.24"]
[White "Maldonado Gonzales, Stefano"]
[Black "Bellia, Fabrizio"]
[Result "1/2-1/2"]
[ECO "B11"]
[WhiteElo "2218"]
[BlackElo "2384"]
[Annotator "TA"]
[PlyCount "66"]
[EventDate "2024.04.07"]
[EventType "team-tourn"]
[EventCountry "ITA"]
[SourceTitle "playchess.com"]
[Source "ChessBase"]
[SourceQuality "1"]
[TimeControl "40/5400+30:900+30"]

{[%evp 9,66,37,41,28,35,39,50,13,37,12,19,0,0,4,16,19,65,-11,-6,-11,-8,-8,-9,-80,-85,-77,-46,-38,-40,-52,-44,-48,-39,-53,-41,-61,-45,-41,-49,-38,-15,-20,65,9,8,7,8,39,12,12,117,45,36,0,18,0,22,0,18]} 1. e4 {[%emt 0:00:01]} c6 {[%emt 0:00:09]} 2. Nf3 {[%emt 0:00:03]} d5 {[%emt 0:00:11]} 3. Nc3 {[%emt 0:00:03]} dxe4 {[%emt 0:00:25]} 4. Nxe4 {[%emt 0:00:05]} Nf6 {[%emt 0:00:08]} 5. Qe2 {[%emt 0:00:03]} Bf5 {[%emt 0:08:27]} 6. Nxf6+ {[%emt 0:08:01]} gxf6 {[%emt 0:00:54]} 7. d4 {[%emt 0:00:05]} e6 {[%emt 0:06:12]} 8. Bf4 {[%emt 0:11:44] White is slightly better.} Bd6 {[%emt 0:03:30]} 9. Bxd6 {[%emt 0:00:08]} Qxd6 {[%emt 0:00:04]} 10. Nh4 {[%emt 0:04:36]} Bg6 {[%emt 0:01:36]} 11. c3 {[%emt 0:02:26]} Nd7 {[%emt 0:06:20]} 12. g3 {[%emt 0:00:23]} f5 {[%emt 0:02:01]} (12... O-O-O $11) 13. Nxg6 {[%emt 0:08:17]} (13. Bg2 $14) 13... hxg6 $11 {[%emt 0:00:35]} 14. f4 {[%emt 0:00:18]} O-O-O {[%emt 0:05:53]} 15. Bg2 {[%emt 0:00:13]} g5 {[%emt 0:03:17]} 16. O-O {[%emt 0:11:21] [#]} (16. fxg5 $11 Rxh2 17. Kf2) 16... gxf4 $1 $17 {[%emt 0:01:47]} 17. Rxf4 {[%emt 0:00:05]} Nf6 {[%emt 0:04:07]} 18. Bf3 {[%emt 0:02:03] Wards off Ng4} Rh7 {[%emt 0:11:05]} 19. Rf1 {[%emt 0:04:24]} Rdh8 {[%emt 0:01:36]} 20. Rf2 $1 {[%emt 0:00:15]} Nd7 {[%emt 0:04:03]} 21. Bh1 {[%emt 0:00:39]} Nf8 {[%emt 0:00:45]} 22. R4f3 {[%emt 0:07:23]} Ng6 {[%emt 0:00:35]} 23. b4 {[%emt 0:02:31]} Kb8 {[%emt 0:01:34]} 24. a4 {[%emt 0:01:49]} f4 {[%emt 0:06:31]} 25. gxf4 {[%emt 0:00:50]} f5 {[%emt 0:00:07]} (25... Rh4 $11 26. Qd2 Rg4+ 27. Bg2 Rgh4) 26. a5 {[%emt 0:05:35]} (26. Qe3 $1 $14) 26... Rh4 $11 {[%emt 0:02:27][%cal Rg6f4]} 27. Qe3 {[%emt 0:03:03][%cal Oa5a6]} a6 {[%emt 0:02:55]} 28. h3 {[%emt 0:05:11]} Kc7 {[%emt 0:12:38]} 29. Bg2 {[%emt 0:01:07]} R8h6 {[%emt 0:02:57]} (29... Kb8 $1 $11 {keeps the balance.}) 30. Qd2 {[%emt 0:02:47]} ({White should try} 30. c4 $16) 30... Rh8 $14 {[%emt 0:02:34]} 31. Qe3 {[%emt 0:00:39]} Kb8 {[%emt 0:00:52] The position is equal.} 32. Bh1 {[%emt 0:01:41]} Qc7 {[%emt 0:02:16]} 33. Bg2 {[%emt 0:00:50]} Qd6 {[%emt 0:00:24] Weighted Error Value: White=0.20 (precise) /Black=0.19 (very precise) .  Mistake:       	White=4     	Black=3      Inaccurate:     	White=2     	Black=1      OK:         	White=8     	Black=7      Best:        	---       	Black=1      Strong:       	White=1     	Black=1} 1/2-1/2